{"text_format":"2","workbook":"xlsx","n_sheets":4,"sheets":["Tuotekortti","Lisätiedot","Product inspection form","Information"],"not_rendered":{"charts":0,"images":11,"macros":0,"external_links":0,"defined_names":1,"comments":0,"pivot_tables":0},"unopened":[],"bounds":{"document_bytes":16777216,"sheet_cells":100000,"run_cost":"one","rows_first":2000,"rows_last":500,"rows_between":2000,"halvings":0,"cell_chars":16384,"cell_head_chars":4096},"cells_cut":0,"cells_raw":0,"read":"whole","date_system":"1900"}

{"sheet":"Tuotekortti","index":0,"n_rows":137,"n_cols":6,"rows_kept":137,"cut":false,"hidden":false,"merged":[[83,3,83,5],[55,3,55,6],[49,3,49,6],[30,2,30,3],[2,1,2,6],[14,3,14,6],[28,3,28,4],[36,2,36,6],[8,3,8,6],[40,3,40,4]]}
[]
[]
[null,"Tuotekortti"]
[]
[null,"Tuote:"]
[]
[null,"Tunniste:"]
[]
[null,"Materiaali:","Muu, mikä:"]
[]
[null,"Lähtötiedot:","Mistä purettu:"]
[null,null,"Milloin purettu:"]
[null,null,"Rakennusvuosi:"]
[null,null,"Paikka rakennuksessa:"]
[null,null,"Olosuhteet:","Käyttöluokka 1: Lämmin sisätila"]
[]
[null,"Mitat:","Korkeus:",null,"mm"]
[null,null,"Leveys:",null,"mm"]
[null,null,"Pituus:",null,"mm"]
[null,null,"Halkaisija:",null,"mm"]
[null,null,"Paino:",null,"kg "]
[null,null,"Tiheys:",null,"kg/m3"]
[null,null,"Jäännöstaipuma:",null,"mm"]
[]
[null,"Tuotetiedot:","Valmistaja:"]
[null,null,"Valmistusvuosi:"]
[null,null,"Erä:"]
[null,null,"Leimat:"]
[null,null,"Lujuusluokka:"]
[]
[null,"Pintakäsittely:","Ei pintakäsittelyä"]
[]
[null,"Kuntoarvio:","Hyvä"]
[]
[null,"Havaitut vauriot:"]
[]
[null,"Liima:"]
[]
[null,"Altistuminen kemikaaleille, haitta-aineille:",null,null,"Kyllä, mille:"]
[]
[null,"Haitta-aineet tutkittu:",null,"Ei tutkittu"]
[]
[]
[]
[]
[]
[]
[null,"Uudelleenkäyttöluokka:"]
[]
[null,"Uudelleenkäyttötarkoitus:",null,"Kantavat rakenteet, sisätilat"]
[]
[null,"Soveltuuko kantaviin rakenteisiin:",null,"Kyllä"]
[]
[null,"Paloluokka:",null,null,"s2-","d0"]
[]
[null,"Kosteudenkesto:",null,"Puu: Luokka 3, Ulkotilat tai jatkuva kosteus"]
[]
[null,"Tehdyt testaukset ja tulokset:"]
[]
[null,"Tehdyt kunnostukset:"]
[]
[null,"Hiilijalanjälkiarvio:"]
[]
[null,"Materiaalin kierrätettävyys elinkaaren lopussa:"]
[]
[null,"Ominaislujuudet (N/mm2)"]
[null,"Taivutus","fm,k",{"$f":"Lisätiedot!K67","v":0}]
[null,"Veto","ft,0,k",{"$f":"Lisätiedot!K68","v":0}]
[null,null,"ft,90,k",{"$f":"Lisätiedot!K69","v":0}]
[null,"Puristus","fc,0,k",{"$f":"Lisätiedot!K70","v":0}]
[null,null,"fc,90,k",{"$f":"Lisätiedot!K71","v":0}]
[null,"Leikkaus","fv,k",{"$f":"Lisätiedot!K72","v":0}]
[null,null,"fr,k",{"$f":"Lisätiedot!K73","v":0}]
[null,"Jäykkyysominaisuudet (N/mm2)"]
[null,"Kimmomoduuli","E0,mean",{"$f":"Lisätiedot!K75","v":0}]
[null,null,"E0,05",{"$f":"Lisätiedot!K76","v":0}]
[null,null,"E90,mean",{"$f":"Lisätiedot!K77","v":0}]
[null,"Liukumoduuli","Gmean",{"$f":"Lisätiedot!K78","v":0}]
[null,null,"G0,05",{"$f":"Lisätiedot!K79","v":0}]
[null,"Tiheydet (kg/m3)"]
[null,"Ominaistiheys","ρk",{"$f":"Lisätiedot!K81","v":0}]
[null,null,"ρmean",{"$f":"Lisätiedot!K82","v":0}]
[]
[null,"Säilytys ja suojaus:",null,"Lämpimässä, sisätiloissa"]
[]
[null,"Kuljetusohje:"]
[]
[null,"Standardit ja määräykset:",null,"EN 1995-1-1",null,"EN 14080"]
[null,null,null,"EN 1995-1-2"]
[]
[]
[]
[null,"Kuvat ja liitteet:"]
{"$rows_empty":39}
[null,"Dokumentin laatija: "]
[null,"Koulutus ja pätevyydet:"]
[null,"Yritys:"]
[null,"Paikka ja aika:"]
[null,"Allekirjoitus:"]

{"sheet":"Lisätiedot","index":1,"n_rows":82,"n_cols":12,"rows_kept":82,"cut":false,"hidden":false,"merged":[]}
[null,"Tuotekortti on vapaaseen käyttöön ja muokattavissa tarpeen mukaan. Tämä tuotekortti on toteutettu KIRA CIRCULARIS- Kiinteistö- ja rakennusalan kiertotalouden tuotteet, palvelut ja innovaatiot hankkeen puitteissa Hämeen Ely-keskuksen rahoittamana"]
[]
[null,"Lujuusluokka",null,"Kuntoarvio",null,null,"Uudelleenkäyttöluokka",null,null,"Uudelleenkäyttötarkoitus",null,"Säilytys ja suojaus"]
[null,"GL24c",null,"Hyvä",null,null,"GL24c",null,null,"Kantavat rakenteet, sisätilat",null,"Lämpimässä, sisätiloissa"]
[null,"GL24h",null,"Tyydyttävä",null,null,"GL24h",null,null,"Kantavat rakenteet, ei sisätilat",null,"Kuivassa, säältä suojattuna"]
[null,"GL30c",null,"Kunnostettava",null,null,"GL30c",null,null,"Ei kantavat rakenteet, sisätilat",null,"Ei tarvitse suojausta"]
[null,"GL30h",{"$nulls":4},"GL30h",null,null,"Ei kantavat rakenteet, ei sisätilat"]
[null,"GL30cs",{"$nulls":4},"GL30hs"]
[null,"GL30hs",{"$nulls":4},"Gl30hs"]
[null,"L50 = LT40 = GL24c"]
[null,"L40 = LT30 = GL30c",{"$nulls":4},"Pintakäsittely",null,null,"Haitta-aineet tutkittu"]
[null,"L30 = LT20",{"$nulls":4},"Lakattu",null,null,"Tutkittu, havainnot:"]
[{"$nulls":6},"Maalattu",null,null,"Ei tutkittu"]
[null,"Materiaali",{"$nulls":4},"Muu pintakäsittely, mikä:"]
[null,"Puu: Kuusi",{"$nulls":4},"Ei pintakäsittelyä"]
[null,"Puu: Mänty"]
[null,"Betoni",{"$nulls":4},"Paloluokka",null,null,"Kosteudenkesto"]
[null,"Teräs",{"$nulls":4},"A1-","s1-","d0","Puu: Luokka 1, kuivat sisätilat"]
[null,"Tiili",{"$nulls":4},"A2-","s2-","d1","Puu: Luokka 2, Kosteat sisätilat"]
[null,"Muu, mikä:",{"$nulls":4},"B-","s3-","d2","Puu: Luokka 3, Ulkotilat tai jatkuva kosteus"]
[{"$nulls":6},"C-",null,null,"K0: Ei kosteudenkestävä"]
[{"$nulls":6},"D-",null,null,"K1: Rajoitetusti kosteutta kestävä"]
[{"$nulls":6},"E-",null,null,"K2: Kosteutta kestävä"]
[{"$nulls":6},"F-",null,null,"K3: Erittäin kosteudenkestävä"]
[{"$nulls":9},"K4: Vedenkestävä"]
[null,"Liima"]
[null,"Melamiiniureaformaldehydi (MUF) vaalea liimasauma",{"$nulls":4},"Altistuminen kemikaaleille, haitta-aineille:"]
[null,"Fenoliresorcinoliformaldehydi (PRF) tumma liimasauma",{"$nulls":4},"Ei"]
[null,"Ureaformaldehydi (UF) vaalea liimasauma",{"$nulls":4},"Kyllä, mille:"]
[null,"Epoksiliima korjauksissa"]
[null,"Polyuretaaniliima (PUR) kellertävä liimasauma"]
[null,"Emulsiopolymeeri-isosyaniitti (EPI) vaalea liimasauma"]
[]
[]
[null,"Soveltuuko kantaviin rakenteisiin"]
[null,"Kyllä"]
[null,"Ei"]
[]
[]
[null,"Olosuhteet"]
[null,"Käyttöluokka 1: Lämmin sisätila"]
[null,"Käyttöluokka 2: Ulkoilma, kuiva, katettu ja tuuletettu tila"]
[null,"Käyttöluokka 3: Ulkona säälle alttiina"]
[]
[]
[null,"Lujuusluokka",null,"GL24c","GL24h","GL30c","GL30h","GL30cs","GL30hs","L50 = LT40 = GL24c","L40 = LT30 = GL30c","L30 = LT20"]
[null,"Ominaislujuudet (N/mm2)"]
[null,"Taivutus","fm,k",24,24,30,30,28,28,24,30,"NPD"]
[null,"Veto","ft,0,k",17,19.2,19.5,24,18.7,22.4,17,19.5,"NPD"]
[null,null,"ft,90,k",0.5,0.5,0.5,0.5,0.5,0.5,0.5,0.5,"NPD"]
[null,"Puristus","fc,0,k",21.5,24,24.5,30,23.3,28,21.5,24.5,"NPD"]
[null,null,"fc,90,k",2.5,2.5,2.5,2.5,3,3,2.5,2.5,"NPD"]
[null,"Leikkaus","fv,k",3.5,3.5,3.5,3.5,3.5,3.5,3.5,3.5,"NPD"]
[null,null,"fr,k",1.2,1.2,1.2,1.2,1.2,1.2,1.2,1.2,"NPD"]
[null,"Jäykkyysominaisuudet (N/mm2)",{"$nulls":9},"NPD"]
[null,"Kimmomoduuli","E0,mean",11000,11500,13000,13600,12500,13100,11000,13000,"NPD"]
[null,null,"E0,05",9100,9600,10800,11300,10300,10800,9100,10800,"NPD"]
[null,null,"E90,mean",300,300,300,300,300,300,300,300,"NPD"]
[null,"Liukumoduuli","Gmean",650,650,650,650,650,650,650,650,"NPD"]
[null,null,"G0,05",540,540,540,540,540,540,540,540,"NPD"]
[null,"Tiheydet (kg/m3)",{"$nulls":9},"NPD"]
[null,"Ominaistiheys","ρk",365,385,390,430,390,430,365,390,"NPD"]
[null,null,"ρmean",400,420,430,480,430,480,400,430,"NPD"]
[]
[null,"Lujuusluokka",null,"GL24c","GL24h","GL30c","GL30h","GL30cs","GL30hs"]
[null,"Ominaislujuudet (N/mm2)"]
[null,"Taivutus","fm,k",{"$f":"IF(Tuotekortti!$D$48=Lisätiedot!$D$65,Lisätiedot!D48,0)","v":0},{"$f":"IF(Tuotekortti!$D$48=Lisätiedot!$E$65,Lisätiedot!E48,0)","v":0},{"$f":"IF(Tuotekortti!$D$48=Lisätiedot!$F$65,Lisätiedot!F48,0)","v":0},{"$f":"IF(Tuotekortti!$D$48=Lisätiedot!$G$65,Lisätiedot!G48,0)","v":0},{"$f":"IF(Tuotekortti!$D$48=Lisätiedot!$H$65,Lisätiedot!H48,0)","v":0},{"$f":"IF(Tuotekortti!$D$48=Lisätiedot!$I$65,Lisätiedot!I48,0)","v":0},null,{"$f":"MAX(D67:I67)","v":0}]
[null,"Veto","ft,0,k",{"$f":"IF(Tuotekortti!$D$48=Lisätiedot!$D$65,Lisätiedot!D49,0)","v":0},{"$f":"IF(Tuotekortti!$D$48=Lisätiedot!$E$65,Lisätiedot!E49,0)","v":0},{"$f":"IF(Tuotekortti!$D$48=Lisätiedot!$F$65,Lisätiedot!F49,0)","v":0},{"$f":"IF(Tuotekortti!$D$48=Lisätiedot!$G$65,Lisätiedot!G49,0)","v":0},{"$f":"IF(Tuotekortti!$D$48=Lisätiedot!$H$65,Lisätiedot!H49,0)","v":0},{"$f":"IF(Tuotekortti!$D$48=Lisätiedot!$I$65,Lisätiedot!I49,0)","v":0},null,0]
[null,null,"ft,90,k",{"$f":"IF(Tuotekortti!$D$48=Lisätiedot!$D$65,Lisätiedot!D50,0)","v":0},{"$f":"IF(Tuotekortti!$D$48=Lisätiedot!$E$65,Lisätiedot!E50,0)","v":0},{"$f":"IF(Tuotekortti!$D$48=Lisätiedot!$F$65,Lisätiedot!F50,0)","v":0},{"$f":"IF(Tuotekortti!$D$48=Lisätiedot!$G$65,Lisätiedot!G50,0)","v":0},{"$f":"IF(Tuotekortti!$D$48=Lisätiedot!$H$65,Lisätiedot!H50,0)","v":0},{"$f":"IF(Tuotekortti!$D$48=Lisätiedot!$I$65,Lisätiedot!I50,0)","v":0},null,0]
[null,"Puristus","fc,0,k",{"$f":"IF(Tuotekortti!$D$48=Lisätiedot!$D$65,Lisätiedot!D51,0)","v":0},{"$f":"IF(Tuotekortti!$D$48=Lisätiedot!$E$65,Lisätiedot!E51,0)","v":0},{"$f":"IF(Tuotekortti!$D$48=Lisätiedot!$F$65,Lisätiedot!F51,0)","v":0},{"$f":"IF(Tuotekortti!$D$48=Lisätiedot!$G$65,Lisätiedot!G51,0)","v":0},{"$f":"IF(Tuotekortti!$D$48=Lisätiedot!$H$65,Lisätiedot!H51,0)","v":0},{"$f":"IF(Tuotekortti!$D$48=Lisätiedot!$I$65,Lisätiedot!I51,0)","v":0},null,0]
[null,null,"fc,90,k",{"$f":"IF(Tuotekortti!$D$48=Lisätiedot!$D$65,Lisätiedot!D52,0)","v":0},{"$f":"IF(Tuotekortti!$D$48=Lisätiedot!$E$65,Lisätiedot!E52,0)","v":0},{"$f":"IF(Tuotekortti!$D$48=Lisätiedot!$F$65,Lisätiedot!F52,0)","v":0},{"$f":"IF(Tuotekortti!$D$48=Lisätiedot!$G$65,Lisätiedot!G52,0)","v":0},{"$f":"IF(Tuotekortti!$D$48=Lisätiedot!$H$65,Lisätiedot!H52,0)","v":0},{"$f":"IF(Tuotekortti!$D$48=Lisätiedot!$I$65,Lisätiedot!I52,0)","v":0},null,0]
[null,"Leikkaus","fv,k",{"$f":"IF(Tuotekortti!$D$48=Lisätiedot!$D$65,Lisätiedot!D53,0)","v":0},{"$f":"IF(Tuotekortti!$D$48=Lisätiedot!$E$65,Lisätiedot!E53,0)","v":0},{"$f":"IF(Tuotekortti!$D$48=Lisätiedot!$F$65,Lisätiedot!F53,0)","v":0},{"$f":"IF(Tuotekortti!$D$48=Lisätiedot!$G$65,Lisätiedot!G53,0)","v":0},{"$f":"IF(Tuotekortti!$D$48=Lisätiedot!$H$65,Lisätiedot!H53,0)","v":0},{"$f":"IF(Tuotekortti!$D$48=Lisätiedot!$I$65,Lisätiedot!I53,0)","v":0},null,0]
[null,null,"fr,k",{"$f":"IF(Tuotekortti!$D$48=Lisätiedot!$D$65,Lisätiedot!D54,0)","v":0},{"$f":"IF(Tuotekortti!$D$48=Lisätiedot!$E$65,Lisätiedot!E54,0)","v":0},{"$f":"IF(Tuotekortti!$D$48=Lisätiedot!$F$65,Lisätiedot!F54,0)","v":0},{"$f":"IF(Tuotekortti!$D$48=Lisätiedot!$G$65,Lisätiedot!G54,0)","v":0},{"$f":"IF(Tuotekortti!$D$48=Lisätiedot!$H$65,Lisätiedot!H54,0)","v":0},{"$f":"IF(Tuotekortti!$D$48=Lisätiedot!$I$65,Lisätiedot!I54,0)","v":0},null,0]
[null,"Jäykkyysominaisuudet (N/mm2)",null,{"$f":"IF(Tuotekortti!$D$48=Lisätiedot!$D$65,Lisätiedot!D55,0)","v":0},{"$f":"IF(Tuotekortti!$D$48=Lisätiedot!$E$65,Lisätiedot!E55,0)","v":0},{"$f":"IF(Tuotekortti!$D$48=Lisätiedot!$F$65,Lisätiedot!F55,0)","v":0},{"$f":"IF(Tuotekortti!$D$48=Lisätiedot!$G$65,Lisätiedot!G55,0)","v":0},{"$f":"IF(Tuotekortti!$D$48=Lisätiedot!$H$65,Lisätiedot!H55,0)","v":0},{"$f":"IF(Tuotekortti!$D$48=Lisätiedot!$I$65,Lisätiedot!I55,0)","v":0},null,0]
[null,"Kimmomoduuli","E0,mean",{"$f":"IF(Tuotekortti!$D$48=Lisätiedot!$D$65,Lisätiedot!D56,0)","v":0},{"$f":"IF(Tuotekortti!$D$48=Lisätiedot!$E$65,Lisätiedot!E56,0)","v":0},{"$f":"IF(Tuotekortti!$D$48=Lisätiedot!$F$65,Lisätiedot!F56,0)","v":0},{"$f":"IF(Tuotekortti!$D$48=Lisätiedot!$G$65,Lisätiedot!G56,0)","v":0},{"$f":"IF(Tuotekortti!$D$48=Lisätiedot!$H$65,Lisätiedot!H56,0)","v":0},{"$f":"IF(Tuotekortti!$D$48=Lisätiedot!$I$65,Lisätiedot!I56,0)","v":0},null,0]
[null,null,"E0,05",{"$f":"IF(Tuotekortti!$D$48=Lisätiedot!$D$65,Lisätiedot!D57,0)","v":0},{"$f":"IF(Tuotekortti!$D$48=Lisätiedot!$E$65,Lisätiedot!E57,0)","v":0},{"$f":"IF(Tuotekortti!$D$48=Lisätiedot!$F$65,Lisätiedot!F57,0)","v":0},{"$f":"IF(Tuotekortti!$D$48=Lisätiedot!$G$65,Lisätiedot!G57,0)","v":0},{"$f":"IF(Tuotekortti!$D$48=Lisätiedot!$H$65,Lisätiedot!H57,0)","v":0},{"$f":"IF(Tuotekortti!$D$48=Lisätiedot!$I$65,Lisätiedot!I57,0)","v":0},null,0]
[null,null,"E90,mean",{"$f":"IF(Tuotekortti!$D$48=Lisätiedot!$D$65,Lisätiedot!D58,0)","v":0},{"$f":"IF(Tuotekortti!$D$48=Lisätiedot!$E$65,Lisätiedot!E58,0)","v":0},{"$f":"IF(Tuotekortti!$D$48=Lisätiedot!$F$65,Lisätiedot!F58,0)","v":0},{"$f":"IF(Tuotekortti!$D$48=Lisätiedot!$G$65,Lisätiedot!G58,0)","v":0},{"$f":"IF(Tuotekortti!$D$48=Lisätiedot!$H$65,Lisätiedot!H58,0)","v":0},{"$f":"IF(Tuotekortti!$D$48=Lisätiedot!$I$65,Lisätiedot!I58,0)","v":0},null,0]
[null,"Liukumoduuli","Gmean",{"$f":"IF(Tuotekortti!$D$48=Lisätiedot!$D$65,Lisätiedot!D59,0)","v":0},{"$f":"IF(Tuotekortti!$D$48=Lisätiedot!$E$65,Lisätiedot!E59,0)","v":0},{"$f":"IF(Tuotekortti!$D$48=Lisätiedot!$F$65,Lisätiedot!F59,0)","v":0},{"$f":"IF(Tuotekortti!$D$48=Lisätiedot!$G$65,Lisätiedot!G59,0)","v":0},{"$f":"IF(Tuotekortti!$D$48=Lisätiedot!$H$65,Lisätiedot!H59,0)","v":0},{"$f":"IF(Tuotekortti!$D$48=Lisätiedot!$I$65,Lisätiedot!I59,0)","v":0},null,0]
[null,null,"G0,05",{"$f":"IF(Tuotekortti!$D$48=Lisätiedot!$D$65,Lisätiedot!D60,0)","v":0},{"$f":"IF(Tuotekortti!$D$48=Lisätiedot!$E$65,Lisätiedot!E60,0)","v":0},{"$f":"IF(Tuotekortti!$D$48=Lisätiedot!$F$65,Lisätiedot!F60,0)","v":0},{"$f":"IF(Tuotekortti!$D$48=Lisätiedot!$G$65,Lisätiedot!G60,0)","v":0},{"$f":"IF(Tuotekortti!$D$48=Lisätiedot!$H$65,Lisätiedot!H60,0)","v":0},{"$f":"IF(Tuotekortti!$D$48=Lisätiedot!$I$65,Lisätiedot!I60,0)","v":0},null,0]
[null,"Tiheydet (kg/m3)",null,{"$f":"IF(Tuotekortti!$D$48=Lisätiedot!$D$65,Lisätiedot!D61,0)","v":0},{"$f":"IF(Tuotekortti!$D$48=Lisätiedot!$E$65,Lisätiedot!E61,0)","v":0},{"$f":"IF(Tuotekortti!$D$48=Lisätiedot!$F$65,Lisätiedot!F61,0)","v":0},{"$f":"IF(Tuotekortti!$D$48=Lisätiedot!$G$65,Lisätiedot!G61,0)","v":0},{"$f":"IF(Tuotekortti!$D$48=Lisätiedot!$H$65,Lisätiedot!H61,0)","v":0},{"$f":"IF(Tuotekortti!$D$48=Lisätiedot!$I$65,Lisätiedot!I61,0)","v":0},null,0]
[null,"Ominaistiheys","ρk",{"$f":"IF(Tuotekortti!$D$48=Lisätiedot!$D$65,Lisätiedot!D62,0)","v":0},{"$f":"IF(Tuotekortti!$D$48=Lisätiedot!$E$65,Lisätiedot!E62,0)","v":0},{"$f":"IF(Tuotekortti!$D$48=Lisätiedot!$F$65,Lisätiedot!F62,0)","v":0},{"$f":"IF(Tuotekortti!$D$48=Lisätiedot!$G$65,Lisätiedot!G62,0)","v":0},{"$f":"IF(Tuotekortti!$D$48=Lisätiedot!$H$65,Lisätiedot!H62,0)","v":0},{"$f":"IF(Tuotekortti!$D$48=Lisätiedot!$I$65,Lisätiedot!I62,0)","v":0},null,0]
[null,null,"ρmean",{"$f":"IF(Tuotekortti!$D$48=Lisätiedot!$D$65,Lisätiedot!D63,0)","v":0},{"$f":"IF(Tuotekortti!$D$48=Lisätiedot!$E$65,Lisätiedot!E63,0)","v":0},{"$f":"IF(Tuotekortti!$D$48=Lisätiedot!$F$65,Lisätiedot!F63,0)","v":0},{"$f":"IF(Tuotekortti!$D$48=Lisätiedot!$G$65,Lisätiedot!G63,0)","v":0},{"$f":"IF(Tuotekortti!$D$48=Lisätiedot!$H$65,Lisätiedot!H63,0)","v":0},{"$f":"IF(Tuotekortti!$D$48=Lisätiedot!$I$65,Lisätiedot!I63,0)","v":0},null,0]

{"sheet":"Product inspection form","index":2,"n_rows":137,"n_cols":6,"rows_kept":137,"cut":false,"hidden":false,"merged":[[39,3,39,4],[48,3,48,6],[54,3,54,6],[82,3,82,5],[1,1,1,6],[7,3,7,6],[13,3,13,6],[27,3,27,4],[35,2,35,6]]}
[]
[null,"Reusable product inspection form"]
[]
[null,"Product:"]
[]
[null,"Identifier:"]
[]
[null,"Material:"]
[]
[null,"Initial data:","Where removed from:"]
[null,null,"When removed:"]
[null,null,"Year of construction:"]
[null,null,"Location in the building:"]
[null,null,"Conditions:"]
[]
[null,"Dimensions:","Height:",null,"mm"]
[null,null,"Width:",null,"mm"]
[null,null,"Length:",null,"mm"]
[null,null,"Diameter:",null,"mm"]
[null,null,"Weight:",null,"kg "]
[null,null,"Density:",null,"kg/m3"]
[null,null,"Residual deflection:",null,"mm"]
[]
[null,"Product details:","Manufacturer:"]
[null,null,"Year of manufacture:"]
[null,null,"Batch:"]
[null,null,"Stamps:"]
[null,null,"Strength class:"]
[]
[null,"Surface treatment:"]
[]
[null,"Condition assessment:"]
[]
[null,"Observed damage:"]
[]
[null,"Glue:"]
[]
[null,"Exposure to harmful substances:",null,"No"]
[]
[null,"Harmful substances tested:",null,"Tested, findings:"]
[]
[]
[]
[]
[]
[]
[null,"Reuse class:",null,"GL30c"]
[]
[null,"Re-use:"]
[]
[null,"Suitable for load-bearing structures:"]
[]
[null,"Fire Class:",null,"B-"]
[]
[null,"Moisture resistance:"]
[]
[null,"Tests performed and results:"]
[]
[null,"Repairs made:"]
[]
[null,"Carbon footprint estimate:"]
[]
[null,"Recyclability of material at end of life:"]
[]
[null,"Strength properties (N/mm2)"]
[null,"Bending","fm,k",{"$f":"Information!M67","v":30}]
[null,"Tension","ft,0,k",{"$f":"Information!M68","v":19.5}]
[null,null,"ft,90,k",{"$f":"Information!M69","v":0.5}]
[null,"Compression ","fc,0,k",{"$f":"Lisätiedot!K70","v":0}]
[null,null,"fc,90,k",{"$f":"Information!M71","v":2.5}]
[null,"Shear","fv,k",{"$f":"Information!M72","v":3.5}]
[null,null,"fr,k",{"$f":"Lisätiedot!K73","v":0}]
[null,"Stiffness properties (N/mm2)"]
[null,"Modulus of elasticity","E0,mean",{"$f":"Information!M75","v":13000}]
[null,null,"E0,05",{"$f":"Information!M76","v":10800}]
[null,null,"E90,mean",{"$f":"Information!M77","v":300}]
[null,"Shear modulus","Gmean",{"$f":"Information!M78","v":650}]
[null,null,"G0,05",{"$f":"Lisätiedot!K79","v":0}]
[null,"Densities (kg/m3)"]
[null,"5 percentile","ρk",{"$f":"Information!M81","v":390}]
[null,"Mean","ρmean",{"$f":"Information!M82","v":430}]
[]
[null,"Storage and protection:"]
[]
[null,"Transport instructions:"]
[]
[null,"Standards and regulations:",null,"EN 1995-1-1",null,"EN 14080"]
[null,null,null,"EN 1995-1-2"]
[]
[]
[]
[]
[null,"Images and attachments:"]
{"$rows_empty":39}
[null,"Document author:"]
[null,"Education and qualifications:"]
[null,"Company:"]
[null,"Location and date:"]
[null,"Signature:"]

{"sheet":"Information","index":3,"n_rows":82,"n_cols":14,"rows_kept":82,"cut":false,"hidden":false,"merged":[]}
[]
[]
[null,"Strength class",null,"Condition assessment",null,null,"Reuse class",null,null,"Re-use",null,"Storage and protection"]
[null,"GL24c",null,"Suitable for reuse",null,null,"GL24c",null,null,"Load-bearing structures, interior",null,"Warm, indoors"]
[null,"GL24h",null,"Partially suitable for reuse",null,null,"GL24h",null,null,"Load-bearing structures, non-interior",null,"Dry, protected from the weather"]
[null,"GL30c",null,"Needs to be renovated",null,null,"GL30c",null,null,"Non-load-bearing structures, interior",null,"No protection needed"]
[null,"GL30h",{"$nulls":4},"GL30h",null,null,"Non-load-bearing structures, non-interior"]
[null,"GL30cs",{"$nulls":4},"GL30hs"]
[null,"GL30hs",{"$nulls":4},"Gl30hs"]
[null,"L50 = LT40 = GL24c"]
[null,"L40 = LT30 = GL30c",{"$nulls":4},"Surface treatment",null,null,"Harmful substances tested"]
[null,"L30 = LT20",{"$nulls":4},"Lacquered",null,null,"Tested, findings:"]
[{"$nulls":6},"Painted",null,null,"Not tested"]
[null,"Material",{"$nulls":4},"Other surface treatment, what:"]
[null,"Wood: Spruce",{"$nulls":4},"No surface treatment"]
[null,"Wood: Pine"]
[null,"Concrete",{"$nulls":4},"Fire class",null,null,"Moisture resistance"]
[null,"Steel",{"$nulls":4},"A1-","s1-","d0","Wood: Class 1, Dry indoor"]
[null,"Brick",{"$nulls":4},"A2-","s2-","d1","Wood: Class 2, Moist indoor"]
[null,"Other, what:",{"$nulls":4},"B-","s3-","d2","Wood: Class 3, Outdoor or constant humidity"]
[{"$nulls":6},"C-",null,null,"K0: Not moisture resistant"]
[{"$nulls":6},"D-",null,null,"K1: Limited moisture resistance"]
[{"$nulls":6},"E-",null,null,"K2: Moisture resistant"]
[{"$nulls":6},"F-",null,null,"K3: Very moisture resistant"]
[{"$nulls":9},"K4: Water resistant"]
[null,"Glue"]
[null,"Melamine urea formaldehyde (MUF) light glue",{"$nulls":4},"Exposure to chemicals, harmful substances:"]
[null,"Phenol resorcinol formaldehyde (PRF) dark glue",{"$nulls":4},"No"]
[null,"Urea formaldehyde (UF) light glue",{"$nulls":4},"Yes, to which:"]
[null,"Epoxy glue for repairs"]
[null,"Polyurethane glue (PUR) yellowish glue"]
[null,"Emulsion polymer isocyanite (EPI) light glue"]
[]
[]
[null,"Suitable for load-bearing structures"]
[null,"Yes"]
[null,"No"]
[]
[]
[null,"Service class "]
[null,"Service class 1: Warm indoors"]
[null,"Service class 2: Outdoors, dry, covered and ventilated"]
[null,"Service class 3: Outdoors exposed to the weather"]
[]
[]
[null,null,null,"Strength class",null,"GL24c","GL24h","GL30c","GL30h","GL30cs","GL30hs","L50 = LT40 = GL24c","L40 = LT30 = GL30c","L30 = LT20"]
[null,null,null,"Strength properties"]
[null,null,null,"Bending","fm,k",24,24,30,30,28,28,24,30,"NPD"]
[null,null,null,"Tension","ft,0,k",17,19.2,19.5,24,18.7,22.4,17,19.5,"NPD"]
[{"$nulls":4},"ft,90,k",0.5,0.5,0.5,0.5,0.5,0.5,0.5,0.5,"NPD"]
[null,null,null,"Compression","fc,0,k",21.5,24,24.5,30,23.3,28,21.5,24.5,"NPD"]
[{"$nulls":4},"fc,90,k",2.5,2.5,2.5,2.5,3,3,2.5,2.5,"NPD"]
[null,null,null,"Shear ","fv,k",3.5,3.5,3.5,3.5,3.5,3.5,3.5,3.5,"NPD"]
[{"$nulls":4},"fr,k",1.2,1.2,1.2,1.2,1.2,1.2,1.2,1.2,"NPD"]
[null,null,null,"Stiffness properties (N/mm2)",{"$nulls":9},"NPD"]
[null,null,null,"Modulus of elasticity","E0,mean",11000,11500,13000,13600,12500,13100,11000,13000,"NPD"]
[{"$nulls":4},"E0,05",9100,9600,10800,11300,10300,10800,9100,10800,"NPD"]
[{"$nulls":4},"E90,mean",300,300,300,300,300,300,300,300,"NPD"]
[null,null,null,"Shear modulus","Gmean",650,650,650,650,650,650,650,650,"NPD"]
[{"$nulls":4},"G0,05",540,540,540,540,540,540,540,540,"NPD"]
[null,null,null,"Densities (kg/m3)",{"$nulls":9},"NPD"]
[null,null,null,"5 percentile","ρk",365,385,390,430,390,430,365,390,"NPD"]
[null,null,null,"Mean","ρmean",400,420,430,480,430,480,400,430,"NPD"]
[]
[null,null,null,"Strength class",null,"GL24c","GL24h","GL30c","GL30h","GL30cs","GL30hs"]
[null,null,null,"Strength properties"]
[null,null,null,"Bending","fm,k",{"$f":"IF('Product inspection form'!$D$47=Information!$F$65,Information!F48,0)","v":0},{"$f":"IF('Product inspection form'!$D$47=Information!$G$65,Information!G48,0)","v":0},{"$f":"IF('Product inspection form'!$D$47=Information!$H$65,Information!H48,0)","v":30},{"$f":"IF('Product inspection form'!$D$47=Information!$I$65,Information!I48,0)","v":0},{"$f":"IF('Product inspection form'!$D$47=Information!$J$65,Information!J48,0)","v":0},{"$f":"IF('Product inspection form'!$D$47=Information!$K$65,Information!K48,0)","v":0},null,{"$f":"MAX(F67:K67)","v":30}]
[null,null,null,"Tension","ft,0,k",{"$f":"IF('Product inspection form'!$D$47=Information!$F$65,Information!F49,0)","v":0},{"$f":"IF('Product inspection form'!$D$47=Information!$G$65,Information!G49,0)","v":0},{"$f":"IF('Product inspection form'!$D$47=Information!$H$65,Information!H49,0)","v":19.5},{"$f":"IF('Product inspection form'!$D$47=Information!$I$65,Information!I49,0)","v":0},{"$f":"IF('Product inspection form'!$D$47=Information!$J$65,Information!J49,0)","v":0},{"$f":"IF('Product inspection form'!$D$47=Information!$K$65,Information!K49,0)","v":0},null,19.5]
[{"$nulls":4},"ft,90,k",{"$f":"IF('Product inspection form'!$D$47=Information!$F$65,Information!F50,0)","v":0},{"$f":"IF('Product inspection form'!$D$47=Information!$G$65,Information!G50,0)","v":0},{"$f":"IF('Product inspection form'!$D$47=Information!$H$65,Information!H50,0)","v":0.5},{"$f":"IF('Product inspection form'!$D$47=Information!$I$65,Information!I50,0)","v":0},{"$f":"IF('Product inspection form'!$D$47=Information!$J$65,Information!J50,0)","v":0},{"$f":"IF('Product inspection form'!$D$47=Information!$K$65,Information!K50,0)","v":0},null,0.5]
[null,null,null,"Compression","fc,0,k",{"$f":"IF('Product inspection form'!$D$47=Information!$F$65,Information!F51,0)","v":0},{"$f":"IF('Product inspection form'!$D$47=Information!$G$65,Information!G51,0)","v":0},{"$f":"IF('Product inspection form'!$D$47=Information!$H$65,Information!H51,0)","v":24.5},{"$f":"IF('Product inspection form'!$D$47=Information!$I$65,Information!I51,0)","v":0},{"$f":"IF('Product inspection form'!$D$47=Information!$J$65,Information!J51,0)","v":0},{"$f":"IF('Product inspection form'!$D$47=Information!$K$65,Information!K51,0)","v":0},null,24.5]
[{"$nulls":4},"fc,90,k",{"$f":"IF('Product inspection form'!$D$47=Information!$F$65,Information!F52,0)","v":0},{"$f":"IF('Product inspection form'!$D$47=Information!$G$65,Information!G52,0)","v":0},{"$f":"IF('Product inspection form'!$D$47=Information!$H$65,Information!H52,0)","v":2.5},{"$f":"IF('Product inspection form'!$D$47=Information!$I$65,Information!I52,0)","v":0},{"$f":"IF('Product inspection form'!$D$47=Information!$J$65,Information!J52,0)","v":0},{"$f":"IF('Product inspection form'!$D$47=Information!$K$65,Information!K52,0)","v":0},null,2.5]
[null,null,null,"Shear ","fv,k",{"$f":"IF('Product inspection form'!$D$47=Information!$F$65,Information!F53,0)","v":0},{"$f":"IF('Product inspection form'!$D$47=Information!$G$65,Information!G53,0)","v":0},{"$f":"IF('Product inspection form'!$D$47=Information!$H$65,Information!H53,0)","v":3.5},{"$f":"IF('Product inspection form'!$D$47=Information!$I$65,Information!I53,0)","v":0},{"$f":"IF('Product inspection form'!$D$47=Information!$J$65,Information!J53,0)","v":0},{"$f":"IF('Product inspection form'!$D$47=Information!$K$65,Information!K53,0)","v":0},null,3.5]
[{"$nulls":4},"fr,k",{"$f":"IF('Product inspection form'!$D$47=Information!$F$65,Information!F54,0)","v":0},{"$f":"IF('Product inspection form'!$D$47=Information!$G$65,Information!G54,0)","v":0},{"$f":"IF('Product inspection form'!$D$47=Information!$H$65,Information!H54,0)","v":1.2},{"$f":"IF('Product inspection form'!$D$47=Information!$I$65,Information!I54,0)","v":0},{"$f":"IF('Product inspection form'!$D$47=Information!$J$65,Information!J54,0)","v":0},{"$f":"IF('Product inspection form'!$D$47=Information!$K$65,Information!K54,0)","v":0},null,1.2]
[null,null,null,"Stiffness properties (N/mm2)",null,{"$f":"IF('Product inspection form'!$D$47=Information!$F$65,Information!F55,0)","v":0},{"$f":"IF('Product inspection form'!$D$47=Information!$G$65,Information!G55,0)","v":0},{"$f":"IF('Product inspection form'!$D$47=Information!$H$65,Information!H55,0)","v":0},{"$f":"IF('Product inspection form'!$D$47=Information!$I$65,Information!I55,0)","v":0},{"$f":"IF('Product inspection form'!$D$47=Information!$J$65,Information!J55,0)","v":0},{"$f":"IF('Product inspection form'!$D$47=Information!$K$65,Information!K55,0)","v":0},null,0]
[null,null,null,"Modulus of elasticity","E0,mean",{"$f":"IF('Product inspection form'!$D$47=Information!$F$65,Information!F56,0)","v":0},{"$f":"IF('Product inspection form'!$D$47=Information!$G$65,Information!G56,0)","v":0},{"$f":"IF('Product inspection form'!$D$47=Information!$H$65,Information!H56,0)","v":13000},{"$f":"IF('Product inspection form'!$D$47=Information!$I$65,Information!I56,0)","v":0},{"$f":"IF('Product inspection form'!$D$47=Information!$J$65,Information!J56,0)","v":0},{"$f":"IF('Product inspection form'!$D$47=Information!$K$65,Information!K56,0)","v":0},null,13000]
[{"$nulls":4},"E0,05",{"$f":"IF('Product inspection form'!$D$47=Information!$F$65,Information!F57,0)","v":0},{"$f":"IF('Product inspection form'!$D$47=Information!$G$65,Information!G57,0)","v":0},{"$f":"IF('Product inspection form'!$D$47=Information!$H$65,Information!H57,0)","v":10800},{"$f":"IF('Product inspection form'!$D$47=Information!$I$65,Information!I57,0)","v":0},{"$f":"IF('Product inspection form'!$D$47=Information!$J$65,Information!J57,0)","v":0},{"$f":"IF('Product inspection form'!$D$47=Information!$K$65,Information!K57,0)","v":0},null,10800]
[{"$nulls":4},"E90,mean",{"$f":"IF('Product inspection form'!$D$47=Information!$F$65,Information!F58,0)","v":0},{"$f":"IF('Product inspection form'!$D$47=Information!$G$65,Information!G58,0)","v":0},{"$f":"IF('Product inspection form'!$D$47=Information!$H$65,Information!H58,0)","v":300},{"$f":"IF('Product inspection form'!$D$47=Information!$I$65,Information!I58,0)","v":0},{"$f":"IF('Product inspection form'!$D$47=Information!$J$65,Information!J58,0)","v":0},{"$f":"IF('Product inspection form'!$D$47=Information!$K$65,Information!K58,0)","v":0},null,300]
[null,null,null,"Shear modulus","Gmean",{"$f":"IF('Product inspection form'!$D$47=Information!$F$65,Information!F59,0)","v":0},{"$f":"IF('Product inspection form'!$D$47=Information!$G$65,Information!G59,0)","v":0},{"$f":"IF('Product inspection form'!$D$47=Information!$H$65,Information!H59,0)","v":650},{"$f":"IF('Product inspection form'!$D$47=Information!$I$65,Information!I59,0)","v":0},{"$f":"IF('Product inspection form'!$D$47=Information!$J$65,Information!J59,0)","v":0},{"$f":"IF('Product inspection form'!$D$47=Information!$K$65,Information!K59,0)","v":0},null,650]
[{"$nulls":4},"G0,05",{"$f":"IF('Product inspection form'!$D$47=Information!$F$65,Information!F60,0)","v":0},{"$f":"IF('Product inspection form'!$D$47=Information!$G$65,Information!G60,0)","v":0},{"$f":"IF('Product inspection form'!$D$47=Information!$H$65,Information!H60,0)","v":540},{"$f":"IF('Product inspection form'!$D$47=Information!$I$65,Information!I60,0)","v":0},{"$f":"IF('Product inspection form'!$D$47=Information!$J$65,Information!J60,0)","v":0},{"$f":"IF('Product inspection form'!$D$47=Information!$K$65,Information!K60,0)","v":0},null,540]
[null,null,null,"5 percentile",null,{"$f":"IF('Product inspection form'!$D$47=Information!$F$65,Information!F61,0)","v":0},{"$f":"IF('Product inspection form'!$D$47=Information!$G$65,Information!G61,0)","v":0},{"$f":"IF('Product inspection form'!$D$47=Information!$H$65,Information!H61,0)","v":0},{"$f":"IF('Product inspection form'!$D$47=Information!$I$65,Information!I61,0)","v":0},{"$f":"IF('Product inspection form'!$D$47=Information!$J$65,Information!J61,0)","v":0},{"$f":"IF('Product inspection form'!$D$47=Information!$K$65,Information!K61,0)","v":0},null,0]
[null,null,null,"Mean","ρk",{"$f":"IF('Product inspection form'!$D$47=Information!$F$65,Information!F62,0)","v":0},{"$f":"IF('Product inspection form'!$D$47=Information!$G$65,Information!G62,0)","v":0},{"$f":"IF('Product inspection form'!$D$47=Information!$H$65,Information!H62,0)","v":390},{"$f":"IF('Product inspection form'!$D$47=Information!$I$65,Information!I62,0)","v":0},{"$f":"IF('Product inspection form'!$D$47=Information!$J$65,Information!J62,0)","v":0},{"$f":"IF('Product inspection form'!$D$47=Information!$K$65,Information!K62,0)","v":0},null,390]
[{"$nulls":4},"ρmean",{"$f":"IF('Product inspection form'!$D$47=Information!$F$65,Information!F63,0)","v":0},{"$f":"IF('Product inspection form'!$D$47=Information!$G$65,Information!G63,0)","v":0},{"$f":"IF('Product inspection form'!$D$47=Information!$H$65,Information!H63,0)","v":430},{"$f":"IF('Product inspection form'!$D$47=Information!$I$65,Information!I63,0)","v":0},{"$f":"IF('Product inspection form'!$D$47=Information!$J$65,Information!J63,0)","v":0},{"$f":"IF('Product inspection form'!$D$47=Information!$K$65,Information!K63,0)","v":0},null,430]